bitfinex/quotes_ETHUSD_20241123
["timestamp","ask_amount","ask_price","bid_price","bid_amount"]
[1732350014236,2.43182974,3348.3,3346.5,0.8062]
[1732350014384,2.43182974,3347.8,3346.5,0.8062]
[1732350014576,0.8204,3347.7,3346.5,0.8062]
[1732350015481,3.25222974,3348.2,3346.5,0.8062]
[1732350015678,3.25222974,3348.6,3346.6,0.02987806]
[1732350015982,3.57745271,3348.6,3346.7,0.8062]
[1732350016178,3.25222974,3349.0,3347.1,0.8062]
[1732350016383,3.57745271,3349.0,3347.3,0.8062]
[1732350016975,3.57745271,3349.0,3347.3,1.1039]
[1732350017354,2.43182974,3348.6,3347.3,1.1039]
[1732350017560,2.43182974,3348.2,3347.3,1.1039]
[1732350017765,2.43182974,3348.2,3347.3,0.80688]
[1732350018185,3.25222974,3349.0,3347.3,0.80688]
[1732350018859,0.55,3348.5,3347.3,0.80688]
[1732350019066,0.8027,3348.3,3347.3,0.80688]
[1732350019505,0.29818297,3348.4,3347.3,0.80688]
[1732350019657,0.8027,3349.2,3347.3,0.80688]
[1732350019658,2.43182974,3349.0,3347.3,0.80688]
[1732350020778,2.43182974,3349.0,3347.0,0.63306421]
[1732350020974,2.75528271,3349.0,3347.4,0.7938]
[1732350021285,0.55,3348.9,3347.4,0.7938]
[1732350021660,2.75528271,3349.0,3347.4,0.7938]
[1732350021861,2.43182974,3349.4,3347.6,0.2977]
[1732350022099,2.43182974,3349.4,3347.7,0.7938]
[1732350022283,0.24318297,3349.3,3347.7,0.7938]
[1732350022989,0.24318297,3349.3,3347.5,0.2977]
[1732350023188,0.24318297,3349.3,3348.1,0.2977]
[1732350023363,0.26750127,3349.2,3348.1,0.2977]
[1732350023763,0.26750127,3349.2,3348.3,0.2977]
[1732350023969,2.43182974,3349.4,3348.3,0.2977]
[1732350024382,2.43182974,3350.2,3348.7,0.2977]
[1732350024702,0.8027,3350.3,3348.9,0.2977]
[1732350025009,2.43182974,3350.2,3348.9,0.2977]
[1732350025185,0.32345297,3350.1,3348.9,0.2977]
[1732350026818,2.43182974,3349.8,3349.1,0.2977]
[1732350027266,2.43182974,3350.2,3349.1,0.2977]
[1732350028601,2.43182974,3350.2,3349.3,0.2977]
[1732350028763,0.24318297,3350.1,3349.3,0.2977]
[1732350028966,1.05758297,3350.1,3349.3,0.2977]
[1732350029373,0.24318297,3350.1,3349.3,0.2977]
[1732350029777,2.43182974,3350.6,3349.3,0.2977]
[1732350030001,2.43182974,3350.6,3348.9,0.2977]
[1732350030205,2.43182974,3350.6,3349.3,0.2977]
[1732350030371,0.24318297,3350.5,3349.3,0.2977]
[1732350030566,0.24318297,3350.5,3349.2,0.7982]
[1732350030567,0.24318297,3350.5,3349.6,0.7982]
[1732350030877,2.43182974,3350.9,3350.1,0.2977]
[1732350031078,0.24318297,3350.8,3350.1,0.2977]
[1732350031714,0.01,3352.2,3350.1,0.2977]
[1732350031715,0.01,3352.5,3350.2,0.7982]
[1732350031919,0.8244,3353.2,3350.2,0.7982]
[1732350031920,2.43182974,3353.0,3350.7,0.2977]
[1732350032100,0.32462297,3352.9,3351.1,0.2977]
[1732350032266,0.32462297,3352.9,3351.3,0.2977]
[1732350032578,2.43182974,3352.6,3351.4,0.04575764]
[1732350034521,2.43182974,3352.6,3351.5,0.7982]
[1732350034731,0.8144,3353.2,3351.5,0.8280375]
[1732350034936,0.2003073,3353.2,3351.8,3.0]
[1732350035230,0.2003073,3353.2,3351.9,1.17123035]
[1732350035433,0.2003073,3353.2,3351.9,0.84370102]
[1732350035645,0.2632137,3353.1,3351.9,0.84370102]
[1732350035934,0.2632137,3353.1,3352.0,1.23874404]
[1732350036236,0.015,3354.6,3352.0,1.23874404]
[1732350036237,2.43182974,3354.5,3352.4,0.7982]
[1732350036397,2.43182974,3354.1,3353.1,0.7982]
[1732350036594,0.24318297,3354.0,3353.2,0.04499388]
[1732350037332,2.43182974,3354.1,3353.2,0.04499388]
[1732350037697,2.38182974,3354.1,3353.2,0.04499388]
[1732350037898,2.43182974,3354.5,3353.3,0.7982]
[1732350038146,2.43182974,3354.1,3353.3,0.84315465]
[1732350038293,0.005,3354.6,3353.3,0.84315465]
[1732350038502,0.005,3354.6,3353.4,1.27094033]
[1732350038747,2.43182974,3354.4,3353.4,1.31436347]
[1732350040199,0.24868297,3354.6,3353.5,0.808]
[1732350040404,2.43182974,3354.4,3353.6,0.04321483]
[1732350040613,0.005,3354.6,3353.5,0.808]
[1732350040614,2.43182974,3354.0,3353.5,0.808]
[1732350040810,0.24318297,3353.9,3353.5,0.808]
[1732350041039,2.43182974,3354.4,3353.6,0.47387901]
[1732350041209,0.005,3354.6,3353.6,0.47387901]
[1732350041621,0.24868297,3354.6,3353.6,0.47387901]
[1732350042149,0.24868297,3354.6,3353.7,0.808]
[1732350042650,0.24868297,3354.6,3353.8,0.04312298]
[1732350043649,2.43182974,3354.4,3353.8,0.04312298]
[1732350044156,2.43182974,3354.4,3353.7,0.808]
[1732350044653,2.43182974,3354.4,3353.8,0.04150965]
[1732350045517,0.005,3354.6,3353.8,0.04150965]
[1732350045718,0.005,3354.6,3353.9,0.44423669]
[1732350046150,0.005,3354.6,3354.0,0.04143122]
[1732350046365,0.005,3354.6,3354.1,0.46173669]
[1732350046542,0.005,3354.6,3354.2,0.7887]
[1732350046757,0.005,3354.6,3354.3,0.46173669]
[1732350047027,0.005,3354.6,3354.5,0.7887]
[1732350047364,0.005,3354.6,3354.5,1.26543669]
[1732350047535,0.005,3354.6,3354.5,1.30667186]
[1732350047734,0.005,3354.6,3354.5,2.04657874]
[1732350047936,0.005,3354.6,3354.5,1.12763517]
[1732350048359,0.005,3354.6,3354.5,1.60437186]
[1732350048656,0.005,3354.6,3354.5,2.20999705]
[1732350048870,0.005,3354.6,3354.5,1.12763517]
[1732350050762,0.005,3354.6,3354.5,1.57314436]
[1732350051744,0.005,3354.6,3354.5,1.12763517]
[1732350052233,0.005,3354.6,3354.5,1.57314436]
[1732350053362,0.005,3354.6,3354.5,2.01535124]
[1732350053669,0.005,3354.6,3354.5,2.21986697]
[1732350054647,3.21662974,3356.4,3354.7,0.2977]
[1732350054826,3.21662974,3356.4,3354.9,0.2977]
[1732350055032,3.21662974,3356.4,3355.2,0.2977]
[1732350055463,2.43182974,3356.4,3355.3,0.04073384]
[1732350055762,2.43182974,3356.4,3355.5,0.2977]
[1732350055923,2.42501271,3356.4,3355.5,0.2977]
[1732350056124,2.42501271,3356.4,3355.6,0.04053974]
[1732350057265,0.7848,3356.3,3355.6,0.04053974]
[1732350057479,0.7848,3356.3,3355.6,0.33823974]
[1732350057975,2.43182974,3356.0,3355.1,0.2977]
[1732350058141,0.32098127,3356.2,3355.7,0.03478247]
[1732350058324,0.7848,3356.6,3355.1,0.2977]
[1732350058528,0.7848,3355.6,3354.4,0.2977]
[1732350058769,0.32166297,3355.5,3354.4,0.74320919]
[1732350059658,0.02981032,3355.4,3353.7,0.2977]
[1732350059857,0.32166297,3355.5,3353.7,0.2977]
[1732350059858,0.32166297,3355.5,3353.9,0.2977]
[1732350060038,0.32166297,3355.5,3354.1,0.2977]
[1732350060363,0.32166297,3355.5,3354.2,0.02980621]
[1732350060567,0.35382927,3355.4,3354.2,0.02980621]
[1732350060770,2.46164006,3355.3,3354.1,0.2977]
[1732350061072,2.43182974,3356.1,3354.4,0.2977]
[1732350061234,0.27299329,3356.0,3354.6,0.2977]
[1732350061627,0.24318297,3356.0,3354.7,0.02980532]
[1732350061843,0.24318297,3356.0,3354.9,0.2977]
[1732350062041,0.24318297,3356.0,3355.3,0.2977]
[1732350062244,2.43182974,3356.5,3355.3,0.32749823]
[1732350062772,0.02981032,3356.9,3355.3,0.32749823]
[1732350062773,2.46164006,3356.9,3355.3,0.32749823]
[1732350062941,0.32618401,3356.8,3355.5,0.2977]
[1732350063150,0.32618401,3356.8,3355.6,0.02979526]
[1732350063365,0.35599433,3356.8,3355.8,0.2977]
[1732350063535,0.35582138,3356.7,3355.8,0.2977]
[1732350063977,0.02981032,3356.6,3355.8,0.2977]
[1732350064143,0.35582138,3356.7,3355.8,0.2977]
[1732350064341,0.27876511,3356.6,3355.8,0.2977]
[1732350064541,0.27876511,3356.6,3355.2,0.40838342]
[1732350064542,2.43182974,3357.3,3356.2,0.2977]
[1732350065049,0.02981032,3357.2,3356.2,0.2977]
[1732350065286,0.24616401,3357.1,3356.3,0.02978994]
[1732350065462,9.0,3357.6,3356.5,0.2977]
[1732350065664,1.14318297,3357.5,3356.6,0.02978649]
[1732350065867,1.14318297,3357.5,3356.5,0.73586992]
[1732350066068,1.14318297,3357.5,3356.7,0.2977]
[1732350066275,1.25750127,3357.4,3356.8,0.02978532]
[1732350066589,1.25750127,3357.4,3356.7,0.2977]
[1732350066590,1.25750127,3357.4,3357.0,0.2977]
[1732350067278,9.0,3357.6,3357.2,0.2977]
[1732350067642,9.0,3357.6,3357.2,0.42671676]
[1732350068486,9.0,3357.6,3357.3,0.7827]
[1732350068986,9.0,3357.6,3357.5,0.7827]
[1732350069481,9.0,3357.6,3357.5,1.24328198]
[1732350069693,9.0,3357.6,3357.5,1.20941676]
[1732350070722,8.1667,3357.6,3357.5,1.8291649]
[1732350071022,5.54299016,3357.6,3357.5,1.73153023]
[1732350071206,5.18959016,3357.6,3357.5,1.37813023]
[1732350071587,5.18959016,3357.6,3357.5,3.75838209]
[1732350071888,5.18959016,3357.6,3357.5,0.03396533]
[1732350072225,5.18959016,3357.6,3356.2,0.42671676]
[1732350072408,5.70904918,3357.6,3356.3,0.02978246]
[1732350072617,5.70904918,3357.6,3357.4,0.01]
[1732350072618,5.18959016,3357.6,3357.4,0.01]
[1732350072793,5.18959016,3357.6,3357.3,0.01]
[1732350072991,5.18959016,3357.6,3357.3,0.33747573]
[1732350073199,5.18959016,3357.6,3357.5,0.2977]
[1732350073383,5.18959016,3357.6,3357.5,3.22935556]
[1732350073582,5.18959016,3357.6,3357.5,1.37870668]
[1732350074025,5.18959016,3357.6,3357.5,1.36870668]
[1732350074381,5.18959016,3357.6,3357.5,0.81870668]
[1732350074512,5.18959016,3357.6,3357.5,1.20157735]
[1732350074837,5.18959016,3357.6,3357.5,1.76157735]
[1732350074991,5.18959016,3357.6,3357.5,4.58893006]
[1732350075336,5.18959016,3357.6,3357.5,7.20605939]
[1732350075533,5.18959016,3357.6,3357.5,7.17628366]
[1732350076988,1.262761,3358.0,3357.8,0.01]
[1732350077188,1.262761,3358.0,3357.8,0.88746979]
[1732350077420,1.262761,3358.0,3357.8,2.38557177]
[1732350077792,0.34175078,3358.0,3357.9,7.11151863]
[1732350078162,0.01597045,3358.5,3358.4,0.01]
[1732350078320,0.01597045,3358.5,3358.4,1.16945511]
[1732350078521,0.01597045,3358.5,3358.4,1.74778145]
[1732350078725,0.01597045,3358.5,3358.4,1.9225596]
[1732350079448,4.0,3359.6,3358.4,0.93609368]
[1732350079661,4.0,3359.6,3358.5,1.28155631]
[1732350079952,4.0,3359.6,3358.5,1.71763185]
[1732350080619,4.0,3359.6,3358.5,4.71763185]
[1732350081139,4.0,3359.6,3358.5,4.7473959]
[1732350081669,4.0,3359.6,3358.5,1.1973959]
[1732350081814,4.0,3359.6,3358.5,1.17015295]
[1732350082017,4.0,3359.6,3358.5,1.1403889]
[1732350082335,4.0,3359.6,3358.5,1.67231114]
[1732350082807,3.7023,3358.6,3358.5,0.7362998]
[1732350083013,3.7023,3358.6,3358.5,0.2977]
[1732350083925,3.7023,3358.6,3358.1,0.3274686]
[1732350084128,3.7023,3358.6,3358.5,0.2977]
[1732350084312,3.7023,3358.6,3358.5,0.32746698]
[1732350084946,3.7023,3358.6,3358.5,0.2977]
[1732350085365,4.4919,3358.6,3357.4,0.02977031]
[1732350086055,4.4919,3358.6,3357.5,0.02977253]
[1732350086746,3.7023,3358.6,3357.5,0.02977253]
[1732350087057,3.7023,3358.6,3357.6,0.02977256]
[1732350087556,3.7023,3358.6,3357.2,0.02977182]
[1732350087736,3.7023,3358.6,3357.3,0.2977]
[1732350087911,3.7023,3358.6,3357.4,0.02977183]
[1732350088753,3.7023,3358.6,3357.7,0.2977]
[1732350089062,3.7023,3358.6,3357.8,0.02977184]
[1732350089218,2.43182974,3358.4,3357.7,0.2977]
[1732350089927,0.7896,3358.2,3357.8,0.2977]
[1732350090262,0.7896,3357.9,3357.8,0.2977]
[1732350090859,0.7896,3357.9,3356.6,0.2977]
[1732350091062,0.7896,3357.9,3356.7,0.02977826]
[1732350091357,0.7896,3357.9,3356.8,0.2977]
[1732350091565,0.7896,3357.9,3356.9,0.02978089]
[1732350091734,0.7896,3358.5,3356.9,0.02978089]
[1732350092257,0.7896,3358.5,3357.0,0.2977]
[1732350092431,0.7896,3358.5,3357.2,0.2977]
[1732350092764,0.7896,3358.5,3357.4,0.2977]
[1732350092929,0.7896,3358.5,3357.5,0.02977549]
[1732350093136,3.7023,3358.6,3357.6,0.96426571]
[1732350093340,3.7023,3358.6,3357.7,0.02977195]
[1732350093544,0.7896,3358.5,3357.9,0.2225353]
[1732350093738,3.7023,3358.6,3357.9,0.25231143]
[1732350093939,3.7023,3358.6,3357.9,0.2225353]
[1732350094128,3.7023,3358.6,3358.0,0.02977179]
[1732350094360,3.7023,3358.6,3358.1,0.2225353]
[1732350094673,3.7023,3358.6,3358.2,0.02976832]
[1732350094834,3.7023,3358.6,3358.4,0.2225353]
[1732350095470,0.7896,3358.5,3358.4,0.2225353]
[1732350096915,0.7896,3358.5,3357.0,0.02977825]
[1732350097173,0.7896,3358.5,3357.2,0.2225353]
[1732350097474,0.7896,3358.3,3357.4,0.2225353]
[1732350097659,0.7896,3358.1,3357.4,0.2225353]
[1732350097978,2.77377388,3358.2,3356.4,0.02977825]
[1732350097979,0.7896,3357.9,3356.4,0.32747825]
[1732350098144,0.7896,3357.7,3356.4,0.2977]
[1732350098345,0.7896,3358.0,3356.5,0.02978933]
[1732350098560,0.7896,3357.7,3356.4,0.2977]
[1732350098764,0.7896,3357.5,3356.4,0.32748685]
[1732350099071,0.7896,3357.5,3356.4,0.02978685]
[1732350099773,0.7785,3357.3,3356.2,0.2977]
[1732350099979,0.7785,3357.3,3356.3,0.2977]
[1732350100137,0.7785,3357.1,3356.3,0.2977]
[1732350100992,0.7785,3357.1,3355.9,0.02978912]
[1732350101584,0.7785,3357.1,3355.6,0.02979145]
[1732350101789,0.7785,3357.1,3355.7,0.2977]
[1732350101994,0.7785,3357.1,3355.9,0.2977]
[1732350102194,0.7785,3357.1,3356.0,0.02979144]
[1732350103293,0.7785,3358.0,3356.2,0.2977]
[1732350103600,1.05587739,3358.0,3356.3,0.02978397]
[1732350103894,0.7785,3358.0,3356.4,0.2977]
[1732350104183,0.7785,3358.0,3356.6,0.2977]
[1732350104416,0.7785,3358.0,3356.8,0.2977]
[1732350104981,0.7785,3358.5,3356.8,0.32748284]
[1732350105181,0.7785,3358.5,3357.2,0.2977]
[1732350105392,0.7785,3358.5,3357.3,0.02977655]
[1732350106848,0.7785,3358.5,3357.5,0.2977]
[1732350107055,0.7785,3358.5,3357.7,0.2977]
[1732350107250,0.7785,3358.5,3357.8,0.02977518]
[1732350107704,0.4808,3358.5,3357.8,0.02977518]
[1732350107986,0.4808,3358.5,3357.8,0.32747518]
[1732350108418,5.0,3358.7,3358.0,0.2977]
[1732350108573,5.0,3358.7,3358.1,0.02977477]
[1732350108774,5.0,3358.7,3358.0,0.2977]
[1732350108988,5.0,3358.7,3358.1,0.0297748]
[1732350109378,5.0,3358.7,3358.5,0.2977]
[1732350109597,5.0,3358.7,3358.6,0.62747]
[1732350109795,5.0,3358.7,3358.6,0.2977]
[1732350111714,5.0,3358.7,3357.6,0.02977153]
[1732350111715,5.0,3358.7,3357.6,0.32747153]
[1732350111924,5.0,3358.7,3357.6,0.71309662]
[1732350112089,5.0,3358.7,3357.8,0.2977]
[1732350112288,5.0,3358.7,3358.3,0.2977]
[1732350112494,5.0,3358.7,3358.5,0.2977]
[1732350114314,5.0,3358.7,3358.5,0.32746873]
[1732350114517,5.0,3358.7,3358.5,0.71309382]
[1732350115079,5.0,3358.7,3358.6,0.68332509]
[1732350116707,5.0,3358.7,3358.6,3.98222509]
[1732350117017,5.0,3358.7,3358.6,4.62526426]
[1732350117628,4.88164778,3358.7,3358.6,4.62526426]
[1732350118218,4.88164778,3358.7,3358.6,4.65503086]
[1732350118814,4.88164778,3358.7,3358.6,4.23963917]
[1732350118986,4.88164778,3358.7,3358.6,1.23963917]
[1732350119187,4.88164778,3358.7,3358.6,0.5966]
[1732350119821,4.88164778,3358.7,3358.6,0.2977]
[1732350121825,0.7728,3358.6,3358.3,0.2977]
[1732350122600,0.7728,3358.6,3357.3,0.32747542]
[1732350122818,0.4751,3358.6,3357.3,0.2977]
[1732350123087,0.4751,3358.6,3357.2,2.42283783]
[1732350123439,4.88164778,3358.7,3357.6,2.41839783]
[1732350123590,4.88164778,3358.7,3357.7,0.38562509]
[1732350123926,4.88164778,3358.7,3357.7,3.38562509]
[1732350124693,4.88164778,3358.7,3357.6,2.41839783]
[1732350124889,4.88164778,3358.7,3357.7,3.24283978]
[1732350125122,4.88164778,3358.7,3357.7,0.62846487]
[1732350125426,4.88164778,3358.7,3357.6,0.59781163]
[1732350125588,4.88164778,3358.7,3357.5,3.38562509]
[1732350125790,4.88164778,3358.7,3357.6,0.38562509]
[1732350125991,4.88164778,3358.7,3357.7,0.3022]
[1732350126221,4.88164778,3358.7,3357.8,0.38562509]
[1732350126424,4.88164778,3358.7,3357.7,0.3022]
[1732350126723,4.88164778,3358.7,3357.8,0.38562509]
[1732350127394,4.88164778,3358.7,3357.9,3.0]
[1732350127594,0.7541,3359.5,3358.1,0.3022]
[1732350127828,0.7541,3359.5,3358.2,5.80402292]
[1732350128094,4.0,3359.6,3358.9,0.2977]
[1732350128329,4.0,3359.6,3359.1,0.2977]
[1732350128636,4.0,3359.6,3359.3,0.2977]
[1732350128786,3.4046,3359.6,3359.4,0.39200509]
[1732350128989,3.4046,3359.6,3359.5,0.2977]
[1732350128990,3.1069,3359.6,3359.5,0.2977]
[1732350129186,3.1069,3359.6,3359.5,0.68332509]
[1732350129390,2.2138,3359.6,3359.5,3.69641538]
[1732350129627,1.07659693,3359.6,3359.5,3.7307314]
[1732350129791,0.28001287,3359.6,3359.5,3.7307314]
[1732350129990,0.02,3359.9,3359.6,0.36760631]
[1732350129991,4.68461287,3359.7,3359.6,0.36760631]
[1732350130197,4.68461287,3359.7,3359.6,0.7732314]
[1732350130410,4.38691287,3359.7,3359.6,0.7732314]
[1732350130607,0.02,3359.9,3359.6,3.82162367]
[1732350130818,0.02,3359.9,3359.8,0.2977]
[1732350131144,0.02,3359.9,3359.8,1.61696473]
[1732350131364,0.02,3359.9,3359.8,1.62696473]
[1732350133113,3.50495378,3360.6,3360.2,0.02]
[1732350133325,3.50495378,3360.6,3360.5,6.58839227]
[1732350133635,0.39031462,3360.7,3360.5,3.82759807]
[1732350133832,0.39031462,3360.7,3359.9,0.01]
[1732350134043,0.39031462,3360.7,3360.3,0.41999176]
[1732350134478,0.39031462,3360.7,3360.3,0.82759807]
[1732350134657,0.02336231,3360.7,3360.4,0.40760631]
[1732350134821,4.7541,3361.6,3360.4,0.40760631]
[1732350134822,4.73246231,3361.6,3360.5,0.41999176]
[1732350135033,3.97836231,3361.6,3360.6,0.95760631]
[1732350135253,3.97836231,3361.6,3360.7,0.41999176]
[1732350135427,3.97836231,3361.6,3360.8,0.40760631]
[1732350135761,3.97836231,3361.6,3360.9,0.41999176]
[1732350135969,3.97836231,3361.6,3360.9,0.77759807]
[1732350136151,3.97836231,3361.6,3361.0,0.40760631]
[1732350136460,3.97836231,3361.6,3361.2,0.2977]
[1732350136670,3.97836231,3361.6,3361.3,0.84176473]
[1732350137162,3.97836231,3361.6,3361.4,0.55]
[1732350137459,3.97836231,3361.6,3361.5,0.84176473]
[1732350138445,3.97836231,3361.6,3360.6,0.01]
[1732350138446,3.97836231,3361.6,3360.7,0.2977]
[1732350138951,4.87619854,3361.6,3360.7,0.2977]
[1732350139482,4.87619854,3361.6,3360.8,0.81737761]
[1732350139483,3.97836231,3361.6,3360.8,0.81737761]
[1732350139640,3.97836231,3361.6,3360.8,1.01925491]
[1732350140377,3.97836231,3361.6,3360.9,0.55]
[1732350140581,3.97836231,3361.6,3361.0,0.83201719]
[1732350140767,3.97836231,3361.6,3361.1,0.55]
[1732350140956,3.97836231,3361.6,3361.2,0.42677297]
[1732350141162,3.97836231,3361.6,3361.2,0.85118386]
[1732350141962,3.97836231,3361.6,3361.3,0.2977]
[1732350142166,3.97836231,3361.6,3361.4,0.42441089]
[1732350142485,3.97836231,3361.6,3360.9,0.55]
[1732350142793,3.68066231,3361.6,3361.2,0.2977]
[1732350142945,3.68066231,3361.6,3361.4,0.2977]
[1732350143376,3.68066231,3361.6,3361.4,0.2549582]
[1732350143574,3.68066231,3361.6,3361.4,0.2122164]
[1732350143778,3.68066231,3361.6,3361.5,0.633991]
[1732350143945,3.68066231,3361.6,3361.5,1.48419342]
[1732350144785,0.005,3362.0,3361.5,1.48419342]
[1732350144990,4.23105706,3361.7,3361.6,0.53499756]
[1732350145176,3.482979,3361.7,3361.6,0.95940845]
[1732350145495,3.482979,3361.7,3361.6,3.96940845]
[1732350145496,2.58287038,3361.7,3361.6,3.96940845]
[1732350145660,2.39757038,3361.7,3361.6,3.96940845]
[1732350145879,0.1803,3361.7,3361.6,4.51940845]
[1732350146074,0.005,3362.0,3361.8,0.01]
[1732350146391,0.005,3362.0,3361.9,1.50940845]
[1732350147157,0.005,3362.0,3361.9,1.51940845]
[1732350147358,0.005,3362.4,3362.3,0.01]
[1732350147565,0.005,3362.4,3362.3,0.95940845]
[1732350148264,0.005,3362.4,3362.3,1.50940845]
[1732350148495,5.0,3362.7,3362.3,1.50940845]
[1732350148704,5.0,3362.7,3362.6,0.64253936]
[1732350149001,5.0,3362.7,3362.6,1.50940845]
[1732350149296,4.0,3363.6,3362.6,1.50940845]
[1732350149560,4.0,3363.6,3363.0,0.09253936]
[1732350149871,4.0,3363.6,3363.0,0.51695025]
[1732350150298,4.0,3363.6,3363.2,0.09253936]
[1732350151169,4.9752,3363.6,3363.2,0.09253936]
[1732350151368,4.0,3363.6,3362.5,0.09253936]
[1732350151581,4.0,3363.6,3362.7,0.09253936]
[1732350151778,4.0,3363.6,3362.9,0.09253936]
[1732350151981,4.0,3363.6,3362.9,0.51695025]
[1732350152183,4.0,3363.6,3362.3,0.59139064]
[1732350152184,4.0,3363.6,3363.1,0.09253936]
[1732350152509,0.752,3363.5,3363.1,0.09253936]
[1732350153020,2.4123465,3363.2,3362.2,0.42441089]
[1732350153169,0.752,3363.1,3360.7,0.0987]
[1732350153385,0.99323465,3363.1,3361.1,0.0987]
[1732350153687,0.752,3363.1,3361.5,0.0987]
[1732350154328,0.752,3363.1,3361.6,0.33563071]
[1732350154682,0.752,3363.1,3361.7,0.55]
[1732350154924,0.752,3363.1,3362.0,0.0987]
[1732350155287,0.752,3363.1,3362.1,0.90813071]
[1732350155795,0.752,3363.5,3362.1,0.90813071]
[1732350156197,0.752,3363.5,3362.2,5.4123465]
[1732350156413,4.0,3363.6,3362.3,3.51683071]
[1732350156902,4.0,3363.6,3362.4,0.55]
[1732350157210,4.0,3363.6,3362.5,0.12256071]
[1732350157413,4.0,3363.6,3362.6,2.4123465]
[1732350157823,3.7023,3363.6,3362.6,5.1147465]
[1732350158212,3.7023,3363.6,3362.7,0.96266654]
[1732350158619,3.7023,3363.6,3362.9,0.55]
[1732350158819,3.7023,3363.6,3363.2,0.2977]
[1732350159139,3.7023,3363.6,3363.2,0.3964]
[1732350159435,3.7023,3363.6,3363.2,0.73203321]
[1732350159795,3.7023,3363.6,3363.2,0.2977]
[1732350160418,3.7023,3363.6,3363.4,0.2977]
[1732350160627,3.7023,3363.6,3363.5,0.77343739]
[1732350160998,3.7023,3363.6,3363.5,0.2977]
[1732350161591,4.4998,3363.6,3363.1,0.2977]
[1732350162108,0.7975,3363.5,3363.1,0.2977]
[1732350162839,0.7975,3363.5,3363.2,0.2977]
[1732350163743,0.7975,3363.5,3362.9,0.2977]
[1732350164930,0.7975,3363.5,3362.8,0.2977]
[1732350166822,0.7975,3363.5,3362.5,0.2977]
[1732350167039,0.7975,3363.4,3362.5,0.2977]
[1732350167901,0.94998,3363.5,3362.0,0.2977]
[1732350168540,5.0,3363.7,3362.0,0.2977]
[1732350169253,5.0,3363.7,3362.2,0.2977]
[1732350169546,5.0,3363.7,3362.4,0.2977]
[1732350169844,5.0,3363.7,3362.7,3.2977]
[1732350170818,5.4998,3363.7,3362.7,3.2977]
[1732350171160,5.2021,3363.7,3362.7,3.2977]
[1732350171367,4.9044,3363.7,3362.7,0.3964]
[1732350171514,4.9044,3363.7,3362.7,3.3964]
[1732350171853,4.9044,3363.7,3362.8,0.55]
[1732350172279,4.309,3363.7,3362.8,0.2977]
[1732350173360,4.309,3363.7,3362.5,0.40056829]
[1732350173361,3.5115,3363.7,3363.6,2.7100465]
[1732350173532,3.2138,3363.7,3363.6,6.11061479]
[1732350173732,3.2138,3363.7,3363.6,0.2977]
[1732350175460,3.2138,3363.7,3363.4,0.2977]
[1732350176057,3.2138,3363.7,3363.5,0.2977]
[1732350176260,3.2138,3363.7,3363.5,0.77334982]
[1732350176455,2.6184,3363.7,3363.6,0.2977]
[1732350176750,3.4159,3363.7,3363.6,0.2977]
[1732350177150,3.4159,3363.7,3362.9,3.0]
[1732350177151,3.4159,3363.7,3363.0,0.2977]
[1732350177481,3.4159,3363.7,3363.3,0.0543]
[1732350177482,2.023,3363.7,3363.3,0.0543]
[1732350177774,2.023,3363.7,3363.4,0.74854982]
[1732350177775,1.7253,3363.7,3363.4,0.74854982]
[1732350178676,5.0,3364.7,3363.8,0.8477]
[1732350178880,5.0,3364.7,3363.8,0.2977]
[1732350179380,0.7777,3364.3,3363.8,0.2977]
[1732350179747,0.7777,3364.3,3363.9,0.2977]
[1732350180467,0.7777,3364.3,3363.1,0.2977]
[1732350180686,0.7777,3364.3,3363.1,0.74854982]
[1732350180845,0.7777,3364.3,3363.3,0.2977]
[1732350181862,0.7777,3364.3,3363.4,0.2977]
[1732350182186,0.7777,3364.3,3363.4,0.74854982]
[1732350182341,0.7777,3364.3,3363.6,0.2977]
[1732350182546,0.7777,3364.3,3363.8,0.2977]
[1732350183084,5.7777,3364.7,3363.9,0.74854982]
[1732350183493,5.7777,3364.7,3363.9,0.2977]
[1732350183782,5.7777,3364.7,3363.9,0.74854982]
[1732350184155,5.7777,3364.7,3363.9,1.29854982]
[1732350184661,5.7777,3364.7,3363.9,1.65375588]
[1732350184891,1.09672308,3364.0,3363.9,1.65375588]
[1732350185074,0.79467692,3364.0,3363.9,1.65375588]
[1732350185241,5.0,3364.7,3364.1,0.2977]
[1732350185448,5.0,3364.7,3364.3,0.2977]
[1732350185668,5.0,3364.7,3364.3,0.74854982]
[1732350185877,5.0,3364.7,3364.3,1.29854982]
[1732350186059,5.0,3364.7,3364.3,0.2977]
[1732350187311,5.0,3364.7,3364.1,0.2977]
[1732350187540,5.0,3364.7,3364.1,3.2977]
[1732350187708,3.79470414,3364.6,3364.1,3.2977]
[1732350188198,3.49700414,3364.6,3364.2,0.50514982]
[1732350188395,3.19930414,3364.6,3364.3,0.2977]
[1732350188595,2.90160414,3364.6,3364.4,0.45084982]
[1732350188836,2.60390414,3364.6,3364.4,0.45084982]
[1732350189329,2.60390414,3364.6,3364.5,0.2977]
[1732350189642,2.60390414,3364.6,3364.5,0.74854982]
[1732350189832,2.60390414,3364.6,3364.5,3.74854982]
[1732350190333,2.60390414,3364.6,3364.5,0.74854982]
[1732350190535,2.60390414,3364.6,3364.5,4.10375588]
[1732350191440,1.61590588,3364.6,3364.5,4.10375588]
[1732350191648,0.4879174,3364.7,3364.5,4.10375588]
[1732350191813,0.4879174,3364.7,3364.6,1.10958921]
[1732350192002,0.2,3365.0,3364.6,1.10958921]
[1732350192353,0.2,3365.0,3364.9,5.7100465]
[1732350192650,4.0,3365.6,3365.1,0.2977]
[1732350192949,4.0,3365.6,3365.0,3.84355587]
[1732350192950,0.84606802,3365.6,3365.5,6.3143465]
[1732350193124,0.84606802,3365.6,3365.5,7.17873571]
[1732350193319,5.0,3366.7,3365.7,0.2977]
[1732350193506,5.0,3366.7,3366.2,2.7643465]
[1732350193840,5.0,3366.7,3366.2,6.62873571]
[1732350194052,3.955,3366.6,3366.2,6.62873571]
[1732350194343,3.955,3366.6,3366.4,0.2977]